fUSD/lending_fUSD_20240220
["ID","MTS","AMOUNT","RATE_DAILY","PERIOD"]
[314525688,1708404656103,-231.93143313,0.000366,3]
[314525689,1708404656112,-2138.80583,0.0003661,2]
[314525690,1708404656122,-500.0,0.00036621,2]
[314525691,1708404656132,-535.86,0.00036621,2]
[314525692,1708404656142,-500.0,0.00036621,2]
[314525693,1708404656151,-500.0,0.00036621,2]
[314525694,1708404656161,-500.0,0.00036621,2]
[314525695,1708404656170,-500.0,0.00036621,2]
[314525696,1708404656179,-500.0,0.00036621,2]
[314525697,1708404656189,-500.0,0.00036621,2]
[314525698,1708404656198,-500.0,0.00036621,2]
[314525699,1708404656208,-500.0,0.00036621,2]
[314525700,1708404656217,-500.0,0.00036621,2]
[314525701,1708404656227,-500.0,0.00036621,2]
[314525702,1708404656236,-508.32992146,0.00036621,2]
[314525703,1708404656245,-504.31966728,0.00036621,2]
[314525704,1708404656255,-500.0,0.00036621,2]
[314525705,1708404656265,-500.0,0.00036621,2]
[314525706,1708404656275,-500.0,0.00036621,2]
[314525707,1708404656286,-532.04609794,0.00036621,2]
[314525708,1708404656299,-500.0,0.00036621,2]
[314525709,1708404656311,-500.0,0.00036621,2]
[314525710,1708404656321,-500.0,0.00036621,2]
[314525711,1708404656331,-500.0,0.00036621,2]
[314525712,1708404656341,-500.0,0.00036621,2]
[314525713,1708404656353,-500.0,0.00036621,2]
[314525714,1708404656363,-500.0,0.00036621,2]
[314525715,1708404656374,-500.0,0.00036621,2]
[314525716,1708404656384,-500.0,0.00036621,2]
[314525717,1708404656394,-500.0,0.00036621,2]
[314525718,1708404656404,-500.0,0.00036621,2]
[314525719,1708404656415,-500.0,0.00036621,2]
[314525720,1708404656425,-500.0,0.00036621,2]
[314525721,1708404656435,-500.0,0.00036621,2]
[314525722,1708404656445,-500.0,0.00036621,2]
[314525723,1708404656455,-500.0,0.00036621,2]
[314525724,1708404656465,-500.0,0.00036621,2]
[314525725,1708404656475,-500.0,0.00036621,2]
[314525726,1708404656485,-500.0,0.00036621,2]
[314525727,1708404656495,-500.0,0.00036621,2]
[314525728,1708404656505,-500.0,0.00036621,2]
[314525729,1708404656514,-500.0,0.00036621,2]
[314525730,1708404656524,-500.0,0.00036621,2]
[314525731,1708404656534,-500.24,0.00036621,2]
[314525732,1708404656543,-500.0,0.00036621,2]
[314525733,1708404656553,-166.20327787,0.00036621,2]
[314525734,1708404656563,-500.0,0.00036621,2]
[314525735,1708404656573,-500.0,0.00036621,2]
[314525736,1708404656584,-500.0,0.00036621,2]
[314525737,1708404656594,-586.58,0.00036621,2]
[314525738,1708404656605,-500.0,0.00036621,2]
[314525739,1708404656614,-500.0,0.00036621,2]
[314525740,1708404656625,-500.0,0.00036621,2]
[314525741,1708404656634,-500.0,0.00036621,2]
[314525742,1708404656644,-500.0,0.00036621,2]
[314525743,1708404656654,-500.0,0.00036621,2]
[314525744,1708404656663,-500.0,0.00036621,2]
[314525745,1708404656680,-500.0,0.00036621,2]
[314525746,1708404656691,-500.0,0.00036621,2]
[314525747,1708404656701,-500.0,0.00036621,2]
[314525748,1708404656711,-500.0,0.00036621,2]
[314525749,1708404656721,-500.0,0.00036621,2]
[314525750,1708404656731,-500.00442757,0.00036621,2]
[314525751,1708404656740,-500.0,0.00036621,2]
[314525752,1708404656750,-500.0,0.00036621,2]
[314525753,1708404656760,-500.0,0.00036621,2]
[314525754,1708404656770,-500.0,0.00036621,2]
[314525755,1708404656779,-500.0,0.00036621,2]
[314525756,1708404656789,-500.0,0.00036621,2]
[314525757,1708404656799,-500.0,0.00036621,2]
[314525758,1708404656809,-500.0,0.00036621,2]
[314525759,1708404656819,-500.0,0.00036621,2]
[314525760,1708404656829,-500.0,0.00036621,2]
[314525761,1708404656839,-500.0,0.00036621,2]
[314525762,1708404656849,-500.0,0.00036621,2]
[314525763,1708404656859,-500.0,0.00036621,2]
[314525764,1708404656869,-500.0,0.00036621,2]
[314525765,1708404656880,-500.0,0.00036621,2]
[314525766,1708404656893,-500.0,0.00036621,2]
[314525767,1708404656902,-500.0,0.00036621,2]
[314525768,1708404656911,-500.0,0.00036621,2]
[314525769,1708404656920,-295.26259478,0.00036621,2]
[314525770,1708404656930,-500.0,0.00036621,2]
[314525771,1708404656939,-500.0,0.00036621,2]
[314525772,1708404656949,-245.65334112,0.00036621,2]
[314525773,1708404656959,-500.0,0.00036621,2]
[314525774,1708404656969,-512.6640818,0.00036621,2]
[314525775,1708404656978,-500.0,0.00036621,2]
[314525776,1708404656988,-500.0,0.00036621,2]
[314525777,1708404656998,-500.0,0.00036621,2]
[314525778,1708404657008,-500.0,0.00036621,2]
[314525779,1708404657017,-500.0,0.00036621,2]
[314525780,1708404657027,-500.0,0.00036621,2]
[314525781,1708404657037,-500.0,0.00036621,2]
[314525782,1708404657047,-194.83737115,0.00036621,2]
[314525783,1708404657057,-634.31,0.00036621,2]
[314525784,1708404657066,-500.0,0.00036621,2]
[314525785,1708404657076,-500.0,0.00036621,2]
[314525786,1708404657086,-500.0,0.00036621,2]
[314525787,1708404657096,-514.51,0.00036621,2]
[314525788,1708404657105,-500.0,0.00036621,2]
[314525789,1708404657115,-785.86,0.00036621,2]
[314525790,1708404657125,-500.0,0.00036621,2]
[314525791,1708404657135,-500.0,0.00036621,2]
[314525792,1708404657146,-500.0,0.00036621,2]
[314525793,1708404657156,-718.04,0.00036621,2]
[314525794,1708404657166,-500.0,0.00036621,2]
[314525795,1708404657176,-500.0,0.00036621,2]
[314525796,1708404657185,-500.0,0.00036621,2]
[314525797,1708404657195,-500.0,0.00036621,2]
[314525798,1708404657210,-1887.95,0.00036621,2]
[314525799,1708404657341,-500.0,0.00036621,2]
[314525800,1708404657351,-500.0,0.00036621,2]
[314525801,1708404657361,-500.0,0.00036621,2]
[314525802,1708404657370,-1098.31,0.00036621,2]
[314525803,1708404657379,-2136.83,0.00036621,2]
[314525804,1708404657389,-182.63897233,0.00036621,2]
[314525805,1708404657399,-1362.9,0.00036621,2]
[314525806,1708404657409,-500.0,0.00036621,2]
[314525807,1708404657418,-984.24,0.00036621,2]
[314525808,1708404657427,-514.05413777,0.00036621,2]
[314525809,1708404657435,-500.0,0.00036621,2]
[314525810,1708404657445,-500.0,0.00036621,2]
[314525811,1708404657454,-1767.16,0.00036621,2]
[314525812,1708404657463,-730.58,0.00036621,2]
[314525813,1708404657472,-597.31,0.00036621,2]
[314525814,1708404657481,-500.0,0.00036621,2]
[314525815,1708404657490,-4220.18,0.00036621,2]
[314525816,1708404657498,-500.0,0.00036621,2]
[314525817,1708404657507,-523.68704888,0.00036621,2]
[314525818,1708404657517,-500.0,0.00036621,2]
[314525819,1708404657526,-2057.42,0.00036621,2]
[314525820,1708404657536,-500.0,0.00036621,2]
[314525821,1708404657545,-552.12094725,0.00036621,2]
[314525822,1708404657554,-1817.66,0.00036621,2]
[314525823,1708404657563,-1788.78,0.00036621,2]
[314525824,1708404657572,-500.0,0.00036621,2]
[314525825,1708404657582,-502.59956069,0.00036621,2]
[314525826,1708404657591,-500.0,0.00036621,2]
[314525827,1708404657601,-735.27,0.00036621,2]
[314525828,1708404657611,-500.0,0.00036621,2]
[314525829,1708404657620,-500.0,0.00036621,2]
[314525830,1708404657630,-551.56,0.00036621,2]
[314525831,1708404657639,-500.0,0.00036621,2]
[314525832,1708404657648,-587.99,0.00036621,2]
[314525833,1708404657657,-1012.02,0.00036621,2]
[314525834,1708404657667,-3236.98,0.00036621,2]
[314525835,1708404657677,-500.0,0.00036621,2]
[314525836,1708404657688,-500.0,0.00036621,2]
[314525837,1708404657697,-500.0,0.00036621,2]
[314525838,1708404657707,-1157.33,0.00036621,2]
[314525839,1708404657716,-500.0,0.00036621,2]
[314525840,1708404657725,-786.32,0.00036621,2]
[314525841,1708404657735,-889.72,0.00036621,2]
[314525842,1708404657745,-856.51,0.00036621,2]
[314525843,1708404657754,-500.0,0.00036621,2]
[314525844,1708404657764,-500.0,0.00036621,2]
[314525845,1708404657774,-500.0,0.00036621,2]
[314525846,1708404657783,-1090.54,0.00036621,2]
[314525847,1708404657792,-927.54,0.00036631,2]
[314525848,1708404657801,-1774.41,0.00036631,2]
[314525849,1708404657810,-953.38,0.00036631,2]
[314525850,1708404657819,-1109.66,0.00036631,2]
[314525851,1708404657828,-1555.54,0.00036631,2]
[314525852,1708404657837,-500.0,0.00036631,2]
[314525853,1708404657846,-884.0,0.00036631,2]
[314525854,1708404657854,-1285.99,0.00036631,2]
[314525855,1708404657864,-989.33,0.00036631,2]
[314525856,1708404657877,-1208.46,0.00036631,2]
[314525857,1708404657887,-500.0,0.00036631,2]
[314525858,1708404657897,-9982.6719215,0.0003664,2]
[314525859,1708404657906,-336.27197188,0.0003664,2]
[314525860,1708404657916,-992.00001951,0.00036641,2]
[314525861,1708404657925,-1184.82945645,0.00036641,2]
[314525862,1708404657935,-1822.90360866,0.00036641,2]
[314525863,1708404657944,-10624.38632906,0.00036647,2]
[314525864,1708404657953,-5538.11056031,0.00036661,9]
[314525865,1708404657963,-800.0,0.00036683,3]
[314525866,1708404657972,-800.0,0.00036684,3]
[314525867,1708404657981,-200.0,0.00036684,3]
[314525868,1708404657991,-800.0,0.00036684,3]
[314525869,1708404658000,-800.0,0.00036684,3]
[314525870,1708404658010,-200.0,0.00036684,10]
[314525871,1708404658020,-500.0,0.00036684,10]
[314525872,1708404658030,-200.0,0.00036684,10]
[314525873,1708404658040,-500.0,0.000367,2]
[314525874,1708404658050,-463.8,0.000367,3]
[314525875,1708404658060,-634.22,0.00036731,2]
[314525876,1708404658070,-619.14841119,0.00036733,8]
[314525877,1708404658080,-579.12208978,0.00036741,2]
[314525878,1708404658090,-500.0,0.00036741,2]
[314525879,1708404658100,-500.0,0.00036741,2]
[314525880,1708404658110,-500.0,0.00036741,2]
[314525881,1708404658120,-500.0,0.00036741,2]
[314525882,1708404658130,-500.0,0.00036741,2]
[314525883,1708404658140,-500.0,0.00036741,2]
[314525884,1708404658149,-500.0,0.00036741,2]
[314525885,1708404658159,-500.0,0.00036741,2]
[314525886,1708404658169,-500.0,0.00036741,2]
[314525887,1708404658178,-501.74,0.00036741,2]
[314525888,1708404658189,-534.87,0.00036741,2]
[314525889,1708404658199,-631.04,0.00036741,2]
[314525890,1708404658208,-500.0,0.00036741,2]
[314525891,1708404658218,-500.0,0.00036741,2]
[314525892,1708404658228,-500.0,0.00036741,2]
[314525893,1708404658237,-500.0,0.00036741,2]
[314525894,1708404658247,-500.0,0.00036741,2]
[314525895,1708404658256,-500.0,0.00036741,2]
[314525896,1708404658266,-900.78,0.00036741,2]
[314525897,1708404658277,-500.0,0.00036741,2]
[314525898,1708404658286,-500.0,0.00036741,2]
[314525899,1708404658296,-500.0,0.00036741,2]
[314525900,1708404658306,-682.5,0.00036741,2]
[314525901,1708404658316,-500.0,0.00036741,2]
[314525902,1708404658326,-500.0,0.00036741,2]
[314525903,1708404658335,-500.0,0.00036741,2]
[314525904,1708404658345,-500.0,0.00036741,2]
[314525905,1708404658355,-500.0,0.00036741,2]
[314525906,1708404658365,-611.17,0.00036741,2]
[314525907,1708404658374,-500.0,0.00036741,2]
[314525908,1708404658385,-500.0,0.00036741,2]
[314525909,1708404658395,-538.34581272,0.00036741,2]
[314525910,1708404658405,-627.69,0.00036741,2]
[314525911,1708404658415,-1084.82,0.00036741,2]
[314525912,1708404658425,-683.2,0.00036741,2]
[314525913,1708404658435,-500.0,0.00036741,2]
[314525914,1708404658444,-1352.08,0.00036741,2]
[314525915,1708404658454,-500.0,0.00036741,2]
[314525916,1708404658463,-500.0,0.00036741,2]
[314525917,1708404658473,-500.0,0.00036741,2]
[314525918,1708404658482,-500.0,0.00036741,2]
[314525919,1708404658492,-510.49,0.00036741,2]
[314525920,1708404658501,-500.0,0.00036741,2]
[314525921,1708404658511,-500.0,0.00036741,2]
[314525922,1708404658520,-715.58,0.00036741,2]
[314525923,1708404658530,-640.98,0.00036741,2]
[314525924,1708404658539,-500.0,0.00036741,2]
[314525925,1708404658549,-975.64,0.00036741,2]
[314525926,1708404658558,-500.0,0.00036741,2]
[314525927,1708404658568,-500.0,0.00036741,2]
[314525928,1708404658578,-500.0,0.00036741,2]
[314525929,1708404658587,-500.0,0.00036741,2]
[314525930,1708404658598,-508.08119872,0.00036741,2]
[314525931,1708404658608,-500.0,0.00036741,2]
[314525932,1708404658618,-647.66,0.00036741,2]
[314525933,1708404658628,-750.98,0.00036741,2]
[314525934,1708404658638,-500.0,0.00036741,2]
[314525935,1708404658648,-500.0,0.00036741,2]
[314525936,1708404658658,-500.0,0.00036741,2]
[314525937,1708404658667,-524.09,0.00036741,2]
[314525938,1708404658678,-500.0,0.00036741,2]
[314525939,1708404658688,-500.0,0.00036741,2]
[314525940,1708404658698,-500.0,0.00036741,2]
[314525941,1708404658708,-644.94,0.00036741,2]
[314525942,1708404658718,-660.45,0.00036741,2]
[314525943,1708404658727,-596.86,0.00036741,2]
[314525944,1708404658737,-500.0,0.00036741,2]
[314525945,1708404658747,-631.68,0.00036741,2]
[314525946,1708404658756,-500.0,0.00036741,2]
[314525947,1708404658766,-563.12109155,0.00036741,2]
[314525948,1708404658784,-500.0,0.00036741,2]
[314525949,1708404658793,-500.0,0.00036742,2]
[314525950,1708404658803,-500.0,0.00036742,2]
[314525951,1708404658812,-500.0,0.00036742,2]
[314525952,1708404658822,-500.0,0.00036742,2]
[314525953,1708404658832,-523.89186371,0.00036742,2]
[314525954,1708404658841,-500.0,0.00036742,2]
[314525955,1708404658851,-500.0,0.00036742,2]
[314525956,1708404658861,-500.0,0.00036742,2]
[314525957,1708404658870,-500.0,0.00036742,2]
[314525958,1708404658881,-500.0,0.00036742,2]
[314525959,1708404658890,-500.0,0.00036742,2]
[314525960,1708404658900,-500.0,0.00036742,2]
[314525961,1708404658909,-579.80124984,0.00036742,2]
[314525962,1708404658919,-500.0,0.00036742,2]
[314525963,1708404658928,-500.0,0.00036742,2]
[314525964,1708404658938,-500.0,0.00036742,2]
[314525965,1708404658947,-500.0,0.00036742,2]
[314525966,1708404658957,-500.0,0.00036742,2]
[314525967,1708404658967,-500.0,0.00036742,2]
[314525968,1708404658977,-811.11,0.00036742,2]
[314525969,1708404658986,-527.84,0.00036742,2]
[314525970,1708404658995,-500.0,0.00036742,2]
[314525971,1708404659005,-528.70718664,0.00036742,2]
[314525972,1708404659015,-500.0,0.00036742,2]
[314525973,1708404659025,-424.12294817,0.00036742,2]
[314525974,1708404659034,-500.0,0.00036742,2]
[314525975,1708404659044,-500.0,0.00036742,2]
[314525976,1708404659054,-500.0,0.00036742,2]
[314525977,1708404659064,-500.0,0.00036742,2]
[314525978,1708404659073,-500.0,0.00036742,2]
[314525979,1708404659083,-500.0,0.00036742,2]
[314525980,1708404659092,-500.0,0.00036742,2]
[314525981,1708404659102,-641.07,0.00036742,2]
[314525982,1708404659111,-500.0,0.00036742,2]
[314525983,1708404659121,-500.0,0.00036742,2]
[314525984,1708404659131,-500.0,0.00036742,2]
[314525985,1708404659140,-500.0,0.00036742,2]
[314525986,1708404659149,-500.0,0.00036742,2]
[314525987,1708404659159,-500.0,0.00036742,2]
[314525988,1708404659169,-500.0,0.00036742,2]
[314525989,1708404659179,-500.0,0.00036742,2]
[314525990,1708404659189,-500.0,0.00036742,2]
[314525991,1708404659198,-500.0,0.00036742,2]
[314525992,1708404659208,-500.0,0.00036742,2]
[314525993,1708404659218,-500.0,0.00036742,2]
[314525994,1708404659228,-500.0,0.00036742,2]
[314525995,1708404659237,-707.46,0.00036742,2]
[314525996,1708404659247,-500.0,0.00036742,2]
[314525997,1708404659257,-500.0,0.00036742,2]
[314525998,1708404659267,-644.67,0.00036742,2]
[314525999,1708404659277,-500.0,0.00036742,2]
[314526000,1708404659287,-500.0,0.00036742,2]
[314526001,1708404659297,-500.0,0.00036742,2]
[314526002,1708404659306,-500.0,0.00036742,2]
[314526003,1708404659316,-500.0,0.00036742,2]
[314526004,1708404659325,-500.0,0.00036742,2]
[314526005,1708404659335,-500.0,0.00036773,2]
[314526006,1708404659344,-910.82,0.00036773,2]
[314526007,1708404659353,-500.0,0.00036774,2]
[314526008,1708404659363,-500.0,0.00036774,2]
[314526009,1708404659373,-500.0,0.00036774,2]
[314526010,1708404659382,-500.0,0.00036774,2]
[314526011,1708404659392,-500.0,0.00036774,2]
[314526012,1708404659402,-500.0,0.00036774,2]
[314526013,1708404659411,-500.0,0.00036774,2]
[314526014,1708404659422,-559.92443425,0.00036774,2]
[314526015,1708404659431,-500.0,0.00036774,2]
[314526016,1708404659441,-436.39488142,0.00036774,2]
[314526017,1708404659450,-170.5625335,0.00036774,2]
[314526018,1708404659459,-500.0,0.00036774,2]
[314526019,1708404659469,-500.0,0.00036774,2]
[314526020,1708404659478,-909.05,0.00036774,2]
[314526021,1708404659488,-500.0,0.00036774,2]
[314526022,1708404659497,-500.0,0.00036774,2]
[314526023,1708404659507,-500.0,0.00036774,2]
[314526024,1708404659516,-500.0,0.00036774,2]
[314526025,1708404659526,-2660.73,0.00036774,2]
[314526026,1708404659535,-500.0,0.00036774,2]
[314526027,1708404659545,-1323.38,0.00036774,2]
[314526028,1708404659555,-500.0,0.00036774,2]
[314526029,1708404659565,-500.0,0.00036774,2]
[314526030,1708404659575,-617.5,0.00036774,2]
[314526031,1708404659585,-736.89,0.00036774,2]
[314526032,1708404659598,-380.17139611,0.00036774,2]
[314526033,1708404659609,-1002.14,0.00036774,2]
[314526034,1708404659619,-500.0,0.00036774,2]
[314526035,1708404659630,-1539.09,0.00036774,2]
[314526036,1708404659640,-531.90495261,0.00036774,2]
[314526037,1708404659650,-500.0,0.00036774,2]
[314526038,1708404659659,-2459.94,0.00036774,2]
[314526039,1708404659669,-514.06558339,0.00036774,2]
[314526040,1708404659679,-500.0,0.00036774,2]
[314526041,1708404659689,-500.0,0.00036774,2]
[314526042,1708404659699,-1034.95,0.00036774,2]
[314526043,1708404659709,-21758.28,0.00036774,2]
[314526044,1708404659718,-500.0,0.00036774,2]
[314526045,1708404659728,-4779.65,0.00036774,2]
[314526046,1708404659738,-1076.11,0.00036774,2]
[314526047,1708404659748,-459.39601163,0.00036774,2]
[314526048,1708404659757,-500.0,0.00036774,2]
[314526049,1708404659767,-1051.68,0.00036774,2]
[314526050,1708404659776,-544.35,0.00036774,2]
[314526051,1708404659786,-1240.95,0.00036774,2]
[314526052,1708404659796,-500.0,0.00036774,2]
[314526053,1708404659806,-500.0,0.00036774,2]
[314526054,1708404659815,-804.41,0.00036774,2]
[314526055,1708404659825,-500.0,0.00036774,2]
[314526056,1708404659834,-500.0,0.00036774,2]
[314526057,1708404659843,-500.0,0.00036774,2]
[314526058,1708404659853,-1791.4,0.00036774,2]
[314526059,1708404659862,-1107.49,0.00036774,2]
[314526060,1708404659872,-500.0,0.00036774,2]
[314526061,1708404659881,-500.0,0.00036774,2]
[314526062,1708404659891,-7115.33,0.00036774,2]
[314526063,1708404659901,-500.0,0.00036774,2]
[314526064,1708404659910,-1921.15,0.00036774,2]
[314526065,1708404659919,-500.0,0.00036774,2]
[314526066,1708404659929,-500.0,0.00036774,2]
[314526067,1708404659938,-739.65,0.00036774,2]
[314526068,1708404659948,-500.0,0.00036774,2]
[314526069,1708404659958,-500.0,0.00036774,2]
[314526070,1708404659968,-500.0,0.00036774,2]
[314526071,1708404659978,-444.14067722,0.00036774,2]
[314526072,1708404659988,-500.0,0.00036774,2]
[314526073,1708404659998,-1256.67,0.00036774,2]
[314526074,1708404660008,-1247.91,0.00036774,2]
[314526075,1708404660017,-500.0,0.00036774,2]
[314526076,1708404660027,-973.4,0.00036774,2]
[314526077,1708404660037,-3583.1,0.00036774,2]
[314526078,1708404660048,-500.0,0.00036774,2]
[314526079,1708404660058,-1023.32,0.00036774,2]
[314526080,1708404660068,-1031.56,0.00036774,2]
[314526081,1708404660079,-946.01,0.00036774,2]
[314526082,1708404660089,-500.0,0.00036774,2]
[314526083,1708404660099,-500.0,0.00036774,2]
[314526084,1708404660108,-907.38,0.00036774,2]
[314526085,1708404660118,-500.0,0.00036774,2]
[314526086,1708404660128,-1935.84,0.00036774,2]
[314526087,1708404660138,-889.49,0.00036774,2]
[314526088,1708404660147,-4041.88,0.00036774,2]
[314526089,1708404660156,-500.0,0.00036774,2]
[314526090,1708404660166,-896.14,0.00036774,2]
[314526091,1708404660175,-500.0,0.00036774,2]
[314526092,1708404660185,-405.52557696,0.00036774,2]
[314526093,1708404660194,-1491.78,0.00036774,2]
[314526094,1708404660204,-500.0,0.00036774,2]
[314526095,1708404660213,-5783.7,0.00036774,2]
[314526096,1708404660222,-500.0,0.00036774,2]
[314526097,1708404660232,-500.0,0.00036774,2]
[314526098,1708404660241,-2884.05,0.00036774,2]
[314526099,1708404660250,-1119.13,0.00036774,2]
[314526100,1708404660259,-1193.12,0.00036774,2]
[314526101,1708404660269,-500.0,0.00036774,2]
[314526102,1708404660278,-473.30169265,0.00036774,2]
[314526103,1708404660287,-1702.67,0.00036774,2]
[314526104,1708404660297,-500.0,0.00036774,2]
[314526105,1708404660308,-1367.11,0.00036774,2]
[314526106,1708404660318,-500.0,0.00036774,2]
[314526107,1708404660328,-500.0,0.00036774,2]
[314526108,1708404660338,-8337.97,0.00036774,2]
[314526109,1708404660348,-500.0,0.00036774,2]
[314526110,1708404660357,-3196.77,0.00036774,2]
[314526111,1708404660367,-654.34,0.00036774,2]
[314526112,1708404660376,-875.11,0.00036774,2]
[314526113,1708404660387,-500.0,0.00036774,2]
[314526114,1708404660397,-601.27,0.00036774,2]
[314526115,1708404660406,-500.0,0.00036774,2]
[314526116,1708404660417,-500.0,0.00036774,2]
[314526117,1708404660426,-716.64,0.00036774,2]
[314526118,1708404660436,-1060.48,0.00036774,2]
[314526119,1708404660446,-500.0,0.00036774,2]
[314526120,1708404660624,-500.0,0.00036774,2]
[314526121,1708404660634,-500.0,0.00036774,2]
[314526122,1708404660643,-574.45,0.00036774,2]
[314526123,1708404660652,-500.0,0.00036774,2]
[314526124,1708404660661,-918.96,0.00036774,2]
[314526125,1708404660670,-500.0,0.00036774,2]
[314526126,1708404660680,-972.71,0.00036774,2]
[314526127,1708404660690,-866.26,0.00036774,2]
[314526128,1708404660700,-500.0,0.00036774,2]
[314526129,1708404660709,-500.0,0.00036775,2]
[314526130,1708404660718,-855.19,0.00036775,2]
[314526131,1708404660727,-500.0,0.00036775,2]
[314526132,1708404660736,-500.0,0.00036775,2]
[314526133,1708404660745,-1469.7,0.00036775,2]
[314526134,1708404660755,-500.0,0.00036775,2]
[314526135,1708404660764,-500.0,0.00036775,2]
[314526136,1708404660773,-500.0,0.00036775,2]
[314526137,1708404660783,-504.79,0.00036775,2]
[314526138,1708404660792,-500.0,0.00036775,2]
[314526139,1708404660801,-655.92,0.00036775,2]
[314526140,1708404660810,-500.0,0.00036775,2]
[314526141,1708404660819,-500.0,0.00036775,2]
[314526142,1708404660828,-500.0,0.00036775,2]
[314526143,1708404660836,-500.0,0.00036775,2]
[314526144,1708404660845,-500.0,0.00036775,2]
[314526145,1708404660854,-1802.71,0.00036775,2]
[314526146,1708404660863,-1026.8,0.00036775,2]
[314526147,1708404660872,-549.92,0.00036775,2]
[314526148,1708404660882,-500.0,0.00036775,2]
[314526149,1708404660891,-500.0,0.00036775,2]
[314526150,1708404660900,-500.0,0.00036775,2]
[314526151,1708404660910,-500.0,0.00036775,2]
[314526152,1708404660919,-500.0,0.00036775,2]
[314526153,1708404660928,-500.0,0.00036775,2]
[314526154,1708404660937,-500.0,0.00036775,2]
[314526155,1708404660946,-500.0,0.00036775,2]
[314526156,1708404660956,-500.0,0.00036775,2]
[314526157,1708404660965,-500.0,0.00036775,2]
[314526158,1708404660974,-500.0,0.00036775,2]
[314526159,1708404660983,-500.0,0.00036775,2]
[314526160,1708404660993,-500.0,0.00036775,2]
[314526161,1708404661002,-500.0,0.00036775,2]
[314526162,1708404661012,-572.97,0.00036775,2]
[314526163,1708404661021,-500.0,0.00036775,2]
[314526164,1708404661030,-500.0,0.00036775,2]
[314526165,1708404661039,-500.0,0.00036775,2]
[314526166,1708404661048,-500.0,0.00036775,2]
[314526167,1708404661057,-500.0,0.00036775,2]
[314526168,1708404661067,-500.0,0.00036775,2]
[314526169,1708404661076,-500.0,0.00036775,2]
[314526170,1708404661085,-500.0,0.00036775,2]
[314526171,1708404661095,-500.0,0.00036775,2]
[314526172,1708404661104,-523.36,0.00036775,2]
[314526173,1708404661114,-500.0,0.00036775,2]
[314526174,1708404661124,-500.0,0.00036775,2]
[314526175,1708404661134,-500.0,0.00036775,2]
[314526176,1708404661144,-604.09,0.00036775,2]
[314526177,1708404661153,-500.0,0.00036775,2]
[314526178,1708404661162,-500.0,0.00036775,2]
[314526179,1708404661171,-578.69,0.00036775,2]
[314526180,1708404661181,-548.4,0.00036775,2]
[314526181,1708404661190,-500.0,0.00036775,2]
[314526182,1708404661199,-952.38,0.00036775,2]
[314526183,1708404661209,-500.0,0.00036775,2]
[314526184,1708404661219,-500.0,0.00036775,2]
[314526185,1708404661228,-500.0,0.00036775,2]
[314526186,1708404661238,-694.62,0.00036775,2]
[314526187,1708404661247,-500.0,0.00036775,2]